bitfinex-derivatives/quotes_BNBF0:USTF0_20251219
["timestamp","ask_amount","ask_price","bid_price","bid_amount"]
[1766108965585,1.21377753,825.26,823.02,0.2110914]
[1766108965786,1.21377753,825.25,823.02,0.2110914]
[1766108965983,1.21377753,825.24,823.02,0.2110914]
[1766108966183,1.21377753,825.23,823.02,0.2110914]
[1766108966388,1.21377753,825.22,823.02,0.2110914]
[1766108966588,1.21377753,825.21,823.02,0.2110914]
[1766108966788,1.21377753,825.2,823.02,0.2110914]
[1766108966993,1.21377753,825.19,823.02,0.2110914]
[1766108967190,1.21377753,825.18,823.02,0.2110914]
[1766108967386,1.21377753,825.17,823.02,0.2110914]
[1766108967590,1.21377753,825.16,823.02,0.2110914]
[1766108967891,1.21377753,825.15,823.02,0.2110914]
[1766108968090,9.658,825.21,823.02,0.2110914]
[1766108968091,1.21377753,825.14,823.02,0.2110914]
[1766108968287,1.21377753,825.13,823.02,0.2110914]
[1766108968492,1.21377753,825.12,823.02,0.2110914]
[1766108968793,1.21377753,825.11,823.02,0.2110914]
[1766108968992,9.658,825.21,823.02,0.2110914]
[1766108969190,1.21390427,825.2,823.02,0.2110914]
[1766108969896,1.21391731,825.19,823.02,0.2110914]
[1766108970096,1.21391731,825.18,823.02,0.2110914]
[1766108970297,1.21391731,825.17,823.02,0.2110914]
[1766108970596,1.21391731,825.16,823.02,0.2110914]
[1766108970795,1.21391731,825.15,823.02,0.2110914]
[1766108970997,1.21391731,825.14,823.02,0.2110914]
[1766108971292,1.21391731,825.13,823.02,0.2110914]
[1766108971497,1.21391731,825.12,823.02,0.2110914]
[1766108971693,1.21391731,825.11,823.02,0.2110914]
[1766108971996,1.21391731,825.1,823.02,0.2110914]
[1766108972196,1.21391731,825.09,823.02,0.2110914]
[1766108972394,1.21391731,825.08,823.02,0.2110914]
[1766108972597,1.21391731,825.07,823.02,0.2110914]
[1766108972895,0.21114711,824.57,823.02,0.2110914]
[1766108977702,0.21114711,824.57,822.2,0.0149914]
[1766108977895,0.21114711,824.57,820.71,9.60911162]
[1766108978098,0.21114711,824.57,822.95,0.21132726]
[1766108978400,0.21114711,824.57,822.3,9.28971799]
[1766108978597,0.21114711,824.57,822.85,0.21135999]
[1766108979701,0.21114711,824.57,822.3,9.28971799]
[1766108979900,0.21114711,824.57,822.57,0.21130352]
[1766108980096,0.21114711,824.57,822.3,9.28971799]
[1766108980298,0.21114711,824.57,822.46,0.21132213]
[1766109023629,6.358,824.56,822.46,0.21132213]
[1766109023829,1.21489405,824.55,822.46,0.21132213]
[1766109025532,19.53134218,824.56,822.46,0.21132213]
[1766109069682,13.17334218,824.56,822.46,0.21132213]
[1766109072384,9.226,824.55,822.46,0.21132213]
[1766109086391,13.17334218,824.56,822.46,0.21132213]
[1766109089398,7.31,824.55,822.46,0.21132213]
[1766109117522,0.00935884,825.39,822.46,0.21132213]
[1766109117722,0.21108564,825.44,822.46,0.21132213]
[1766109121218,8.064,825.43,822.46,0.21132213]
[1766109165056,0.21108564,825.44,822.46,0.21132213]
[1766109168253,9.934,825.43,822.46,0.21132213]
[1766109180564,9.934,825.43,822.75,0.21109332]
[1766109205184,0.21108564,825.44,822.75,0.21109332]
[1766109209085,9.934,825.43,822.75,0.21109332]
[1766109230409,9.934,825.43,822.77,9.60911162]
[1766109235417,9.934,825.43,823.12,9.60911162]
[1766109240623,9.934,825.43,823.14,9.60911162]
[1766109246029,9.934,825.43,823.17,9.60911162]
[1766109251129,9.934,825.43,823.07,9.60911162]
[1766109256339,9.934,825.43,822.96,9.60911162]
[1766109261638,9.934,825.43,823.07,9.60911162]
[1766109265140,13.267014,825.95,823.07,9.60911162]
[1766109266740,13.267014,825.95,823.08,9.60911162]
[1766109269239,9.162,825.94,823.08,9.60911162]
[1766109269839,9.37287714,825.94,823.08,9.60911162]
[1766109272041,9.37287714,825.94,822.83,9.60911162]
[1766109276753,9.162,825.94,822.83,9.60911162]
[1766109277253,9.162,825.94,822.93,9.60911162]
[1766109282356,9.162,825.94,822.75,0.21109332]
[1766109282357,9.162,825.94,823.07,9.60911162]
[1766109287660,9.162,825.94,823.33,9.60911162]
[1766109292668,9.162,825.94,823.36,9.60911162]
[1766109298172,9.162,825.94,823.24,9.60911162]
[1766109301277,13.267014,825.95,823.24,9.60911162]
[1766109303277,13.267014,825.95,823.21,9.60911162]
[1766109304874,9.793,825.94,823.21,9.60911162]
[1766109308482,9.793,825.94,823.23,9.60911162]
[1766109310484,0.21086692,825.92,823.23,9.60911162]
[1766109313885,0.21086692,825.92,823.18,9.60911162]
[1766109319194,0.21086692,825.92,823.22,9.60911162]
[1766109324193,0.21086692,825.92,823.24,9.60911162]
[1766109325897,9.793,825.94,823.24,9.60911162]
[1766109329598,9.793,825.94,823.25,9.60911162]
[1766109334801,9.793,825.94,823.36,9.60911162]
[1766109339907,9.793,825.94,823.37,9.60911162]
[1766109345411,9.793,825.94,823.13,9.60911162]
[1766109350418,9.793,825.94,823.04,9.60911162]
[1766109355621,9.793,825.94,823.05,9.60911162]
[1766109358126,0.21085095,826.04,823.05,9.60911162]
[1766109360725,8.606,826.03,823.05,9.60911162]
[1766109360930,8.606,826.03,823.11,9.60911162]
[1766109362524,21.99815168,826.03,823.11,9.60911162]
[1766109366128,21.99815168,826.03,822.83,56.63339397]
[1766109369736,56.80628377,825.95,822.83,56.63339397]
[1766109380945,56.80628377,825.95,823.09,0.21096727]
[1766109381146,56.80628377,825.95,823.09,9.29085443]
[1766109393264,1.21134916,825.94,823.09,9.29085443]
[1766109402881,9.928,825.93,823.09,9.29085443]
[1766109403078,1.21134916,825.92,823.09,9.29085443]
[1766109410285,1.21134916,825.92,823.09,9.07988716]
[1766109412388,9.928,825.93,823.09,9.07988716]
[1766109415686,0.21091804,825.6,823.37,0.21091804]
[1766109415987,9.928,825.93,823.37,0.21091804]
[1766109417185,0.21090334,825.71,823.37,0.21091804]
[1766109418591,0.21088545,825.85,823.37,0.21091804]
[1766109428296,9.929,825.84,823.37,0.21091804]
[1766109479446,0.2108797,825.94,823.37,0.21091804]
[1766109482046,9.928,825.93,823.37,0.21091804]
[1766109532200,0.2108797,825.94,823.37,0.21091804]
[1766109535106,9.928,825.93,823.37,0.21091804]
[1766109536905,23.11158664,825.93,823.37,0.21091804]
[1766109546814,1.2122866,825.92,823.37,0.21091804]
[1766109559923,1.21258523,825.91,823.37,0.21091804]
[1766109560124,1.21258523,825.9,823.37,0.21091804]
[1766109560321,1.21258523,825.89,823.37,0.21091804]
[1766109560522,1.21258523,825.88,823.37,0.21091804]
[1766109560725,1.21258523,825.87,823.37,0.21091804]
[1766109560927,1.21258523,825.86,823.37,0.21091804]
[1766109561128,1.21258523,825.85,823.37,0.21091804]
[1766109561325,1.21258523,825.84,823.37,0.21091804]
[1766109561529,1.21258523,825.83,823.37,0.21091804]
[1766109561729,1.21258523,825.82,823.37,0.21091804]
[1766109562025,1.21258523,825.81,823.37,0.21091804]
[1766109562228,1.21258523,825.8,823.37,0.21091804]
[1766109562526,1.21258523,825.79,823.37,0.21091804]
[1766109562724,23.11158664,825.93,823.37,0.21091804]
[1766109563024,1.21261874,825.92,823.37,0.21091804]
[1766109566224,1.2126192,825.91,823.37,0.21091804]
[1766109566429,1.2126192,825.9,823.37,0.21091804]
[1766109566729,1.2126192,825.89,823.37,0.21091804]
[1766109566929,1.2126192,825.88,823.37,0.21091804]
[1766109567129,1.2126192,825.87,823.37,0.21091804]
[1766109567334,1.2126192,825.86,823.37,0.21091804]
[1766109567526,1.2126192,825.85,823.37,0.21091804]
[1766109567823,1.2126192,825.84,823.37,0.21091804]
[1766109568027,1.2126192,825.83,823.37,0.21091804]
[1766109568226,1.2126192,825.82,823.37,0.21091804]
[1766109568426,1.2126192,825.81,823.37,0.21091804]
[1766109568626,23.11158664,825.93,823.37,0.21091804]
[1766109568830,1.212619,825.92,823.37,0.21091804]
[1766109587044,9.928,825.91,823.37,0.21091804]
[1766109587243,1.212619,825.9,823.37,0.21091804]
[1766109587846,1.21254778,825.89,823.37,0.21091804]
[1766109588045,1.21254778,825.88,823.37,0.21091804]
[1766109588244,1.21254778,825.87,823.37,0.21091804]
[1766109588445,1.21254778,825.86,823.37,0.21091804]
[1766109588642,1.21254778,825.85,823.37,0.21091804]
[1766109588945,1.21254778,825.84,823.37,0.21091804]
[1766109589145,9.928,825.91,823.37,0.21091804]
[1766109589442,1.21247419,825.9,823.37,0.21091804]
[1766109595750,9.928,825.91,823.37,0.21091804]
[1766109595949,1.21244539,825.9,823.37,0.21091804]
[1766109599246,9.928,825.91,823.37,0.21091804]
[1766109599451,1.21249252,825.9,823.37,0.21091804]
[1766109615661,1.21249252,825.9,822.25,0.00895242]
[1766109615867,1.21249252,825.9,822.15,9.60911162]
[1766109616067,1.21249252,825.9,823.62,0.21104083]
[1766109616369,1.21249252,825.9,822.8,0.0099158]
[1766109616564,1.21249252,825.9,823.83,0.21104083]
[1766109616867,1.21249252,825.9,823.01,0.01130945]
[1766109617064,1.21249252,825.9,822.19,0.01506379]
[1766109617268,1.21249252,825.9,822.1,9.60911162]
[1766109617969,1.21249252,825.9,823.04,0.21103123]
[1766109625374,55.86235836,825.82,823.04,0.21103123]
[1766109625574,1.21249252,825.81,823.04,0.21103123]
[1766109631378,69.11360255,825.82,823.04,0.21103123]
[1766109631872,1.2132409,825.81,823.04,0.21103123]
[1766109632279,69.11360255,825.82,823.04,0.21103123]
[1766109632680,1.2132409,825.81,823.04,0.21103123]
[1766109643190,9.929,825.8,823.04,0.21103123]
[1766109643490,1.2132409,825.79,823.04,0.21103123]
[1766109656397,1.21301025,825.78,823.04,0.21103123]
[1766109656697,1.21301025,825.77,823.04,0.21103123]
[1766109656896,1.21301025,825.76,823.04,0.21103123]
[1766109657095,1.21301025,825.75,823.04,0.21103123]
[1766109657298,1.21301025,825.74,823.04,0.21103123]
[1766109657500,1.21301025,825.73,823.04,0.21103123]
[1766109657698,1.21301025,825.72,823.04,0.21103123]
[1766109658000,1.21301025,825.71,823.04,0.21103123]
[1766109658198,1.21301025,825.7,823.04,0.21103123]
[1766109658398,1.21301025,825.69,823.04,0.21103123]
[1766109658602,1.21301025,825.68,823.04,0.21103123]
[1766109658799,1.21301025,825.67,823.04,0.21103123]
[1766109659002,1.21301025,825.66,823.04,0.21103123]
[1766109659200,1.21301025,825.65,823.04,0.21103123]
[1766109659401,1.21301025,825.64,823.04,0.21103123]
[1766109659604,9.929,825.8,823.04,0.21103123]
[1766109659605,1.21301025,825.63,823.04,0.21103123]
[1766109659901,1.21301025,825.62,823.04,0.21103123]
[1766109660104,1.21301025,825.61,823.04,0.21103123]
[1766109660306,1.21301025,825.6,823.04,0.21103123]
[1766109660507,1.21301025,825.59,823.04,0.21103123]
[1766109660705,1.21301025,825.58,823.04,0.21103123]
[1766109661006,1.21291014,825.57,823.04,0.21103123]
[1766109661205,9.929,825.8,823.04,0.21103123]
[1766109661403,1.21291001,825.79,823.04,0.21103123]
[1766109663508,0.21102739,825.17,823.04,0.21103123]
[1766109666108,1.21290994,825.7,823.04,0.21103123]
[1766109666308,0.21102292,825.24,823.04,0.21103123]
[1766109669312,9.936,825.23,823.04,0.21103123]
[1766109703746,1.21249397,825.22,823.04,0.21103123]
[1766109704446,9.936,825.23,823.04,0.21103123]
[1766109704649,1.2122441,825.22,823.04,0.21103123]
[1766109706245,1.21192776,825.21,823.04,0.21103123]
[1766109706544,1.21192776,825.2,823.04,0.21103123]
[1766109706744,1.21192776,825.19,823.04,0.21103123]
[1766109706943,1.21192776,825.18,823.04,0.21103123]
[1766109707144,1.21192776,825.17,823.04,0.21103123]
[1766109707345,1.21192776,825.16,823.04,0.21103123]
[1766109707543,1.21192776,825.15,823.04,0.21103123]
[1766109707842,1.21192776,825.14,823.04,0.21103123]
[1766109708049,1.21192776,825.13,823.04,0.21103123]
[1766109708245,1.21192776,825.12,823.04,0.21103123]
[1766109708449,1.21192776,825.11,823.04,0.21103123]
[1766109708649,1.21192776,825.1,823.04,0.21103123]
[1766109708849,1.21192776,825.09,823.04,0.21103123]
[1766109709051,1.21192776,825.08,823.04,0.21103123]
[1766109709251,1.21192776,825.07,823.04,0.21103123]
[1766109709448,1.21192776,825.06,823.04,0.21103123]
[1766109709652,1.21192776,825.05,823.04,0.21103123]
[1766109709945,1.21192776,825.04,823.04,0.21103123]
[1766109710148,9.936,825.23,823.04,0.21103123]
[1766109710346,1.20916124,825.22,823.04,0.21103123]
[1766109719159,1.20631202,825.21,823.04,0.21103123]
[1766109719457,9.936,825.23,823.04,0.21103123]
[1766109719458,1.20631202,825.2,823.04,0.21103123]
[1766109719655,1.20612522,825.19,823.04,0.21103123]
[1766109719855,1.20612522,825.18,823.04,0.21103123]
[1766109720056,1.20612522,825.17,823.04,0.21103123]
[1766109720260,1.20612522,825.16,823.04,0.21103123]
[1766109720460,1.20612522,825.15,823.04,0.21103123]
[1766109720656,1.20612522,825.14,823.04,0.21103123]
[1766109720857,9.936,825.23,823.04,0.21103123]
[1766109720858,1.20612522,825.13,823.04,0.21103123]
[1766109721061,1.20612522,825.12,823.04,0.21103123]
[1766109721356,1.20612522,825.11,823.04,0.21103123]
[1766109721561,1.20612522,825.1,823.04,0.21103123]
[1766109721761,1.20612522,825.09,823.04,0.21103123]
[1766109721961,1.20612522,825.08,823.04,0.21103123]
[1766109722260,1.20612522,825.07,823.04,0.21103123]
[1766109722461,9.936,825.23,823.04,0.21103123]
[1766109722658,1.20510581,825.22,823.04,0.21103123]
[1766109728361,9.936,825.23,823.04,0.21103123]
[1766109729461,0.21102292,825.24,823.04,0.21103123]
[1766109732864,9.936,825.23,823.04,0.21103123]
[1766109747277,54.99584605,825.15,823.04,0.21103123]
[1766109747472,68.32951,825.15,823.04,0.21103123]
[1766109758485,1.21168367,825.14,823.04,0.21103123]
[1766109772605,9.937,825.13,823.04,0.21103123]
[1766109772905,1.21168367,825.12,823.04,0.21103123]
[1766109774608,9.937,825.13,823.04,0.21103123]
[1766109774808,1.21224423,825.12,823.04,0.21103123]
[1766109795930,1.21224423,825.11,823.04,0.21103123]
[1766109796130,1.21224423,825.1,823.04,0.21103123]
[1766109796432,1.21224423,825.09,823.04,0.21103123]
[1766109796629,1.21224423,825.08,823.04,0.21103123]
[1766109796833,1.21224423,825.07,823.04,0.21103123]
[1766109797034,1.21224423,825.06,823.04,0.21103123]
[1766109797333,1.21224423,825.05,823.04,0.21103123]
[1766109797534,1.21224423,825.04,823.04,0.21103123]
[1766109797734,1.21224423,825.03,823.04,0.21103123]
[1766109798034,1.21224423,825.02,823.04,0.21103123]
[1766109798235,1.21224423,825.01,823.04,0.21103123]
[1766109807743,1.21224423,825.01,822.22,0.01189785]
[1766109807943,1.21224423,825.01,822.19,56.82132742]
[1766109808141,1.21224423,825.01,823.03,0.21124003]
[1766109808346,1.21224423,825.01,822.21,0.01087408]
[1766109808545,1.21224423,825.01,823.03,0.21124003]
[1766109808747,1.21224423,825.01,822.21,0.01290441]
[1766109809043,1.21224423,825.01,823.03,0.21124003]
[1766109809246,1.21224423,825.01,822.21,0.01380391]
[1766109809444,1.21224423,825.01,822.19,56.82132742]
[1766109809646,1.21224423,825.01,823.03,0.21124003]
[1766109809842,1.21224423,825.01,822.21,0.01530597]
[1766109810046,1.21224423,825.01,822.19,56.82132742]
[1766109811144,1.21224423,825.01,822.89,0.21124003]
[1766109811846,1.21224423,825.01,822.78,0.21127209]
[1766109814245,1.21224423,825.01,821.96,0.01069468]
[1766109814550,1.21224423,825.01,822.61,0.21135935]
[1766109816448,1.21224423,825.0,822.61,0.21135935]
[1766109816747,1.21224423,824.99,822.61,0.21135935]
[1766109816948,1.21224423,824.98,822.61,0.21135935]
[1766109817146,68.32951,825.15,822.61,0.21135935]
[1766109818955,1.20227495,825.14,822.61,0.21135935]
[1766109819156,11.13927495,825.14,822.61,0.21135935]
[1766109819356,1.20227495,825.13,822.61,0.21135935]
[1766109823256,1.20227495,825.13,821.79,0.01527517]
[1766109823554,1.20227495,825.12,822.35,0.21143961]
[1766109823757,9.937,825.14,822.35,0.21143961]
[1766109823758,1.20227495,825.11,822.35,0.21143961]
[1766109823955,1.20227495,825.1,822.35,0.21143961]
[1766109824151,1.20227495,825.09,822.35,0.21143961]
[1766109824356,1.20227495,825.08,822.35,0.21143961]
[1766109824555,1.20227495,825.07,822.35,0.21143961]
[1766109824757,1.20227495,825.06,822.35,0.21143961]
[1766109824959,1.20227495,825.05,822.35,0.21143961]
[1766109825157,1.20227495,825.04,822.35,0.21143961]
[1766109825455,1.20227495,825.03,822.35,0.21143961]
[1766109825655,1.20227495,825.02,822.35,0.21143961]
[1766109825855,1.20227495,825.01,822.35,0.21143961]
[1766109826155,1.20227495,825.0,821.53,0.01060807]
[1766109826360,1.20227495,824.99,822.25,0.21143255]
[1766109826560,1.20227495,824.98,822.25,0.21143255]
[1766109826760,1.20227495,824.97,822.25,0.21143255]
[1766109827061,1.20227495,824.96,822.25,0.21143255]
[1766109827360,1.20227495,824.95,822.25,0.21143255]
[1766109827560,1.20227495,824.94,822.25,0.21143255]
[1766109827760,1.20227495,824.93,822.25,0.21143255]
[1766109828060,9.937,825.14,822.25,0.21143255]
[1766109828061,1.20227495,824.92,822.25,0.21143255]
[1766109828260,1.20227495,824.91,822.25,0.21143255]
[1766109828458,1.20227495,824.9,822.25,0.21143255]
[1766109828757,1.20227495,824.89,822.25,0.21143255]
[1766109828962,1.20227495,824.88,822.25,0.21143255]
[1766109829161,1.20227495,824.87,822.25,0.21143255]
[1766109829463,1.20227495,824.86,822.25,0.21143255]
[1766109829661,1.20227495,824.85,822.25,0.21143255]
[1766109829861,1.19379084,824.84,822.25,0.21143255]
[1766109830065,1.19379084,824.83,822.25,0.21143255]
[1766109830265,1.19379084,824.82,822.25,0.21143255]
[1766109830467,1.19379084,824.81,822.25,0.21143255]
[1766109830665,1.19379084,824.8,822.25,0.21143255]
[1766109830965,1.19379084,824.79,822.25,0.21143255]
[1766109831259,1.19379084,824.78,822.25,0.21143255]
[1766109831464,9.937,825.14,822.25,0.21143255]
[1766109831465,1.19379084,824.77,822.25,0.21143255]
[1766109831665,1.19379084,824.76,822.25,0.21143255]
[1766109831865,1.19379084,824.75,822.25,0.21143255]
[1766109832065,1.19379084,824.74,822.25,0.21143255]
[1766109832365,1.19379084,824.73,822.25,0.21143255]
[1766109832562,1.19379084,824.72,822.25,0.21143255]
[1766109832766,1.19379084,824.71,822.25,0.21143255]
[1766109833061,1.19379084,824.7,822.25,0.21143255]
[1766109833266,1.19379084,824.69,822.25,0.21143255]
[1766109833464,1.19379084,824.68,822.25,0.21143255]
[1766109833665,1.19379084,824.67,822.25,0.21143255]
[1766109833866,1.19379084,824.66,822.25,0.21143255]
[1766109834066,1.19285646,824.65,822.25,0.21143255]
[1766109834268,1.19285646,824.64,822.25,0.21143255]
[1766109834568,68.32951,825.15,822.25,0.21143255]
[1766109834569,1.19285646,824.63,822.25,0.21143255]
[1766109834768,1.19285646,824.62,822.25,0.21143255]
[1766109835065,1.19285646,824.61,822.25,0.21143255]
[1766109835264,1.19285646,824.6,822.25,0.21143255]
[1766109835568,1.19285646,824.59,822.25,0.21143255]
[1766109835765,1.19285646,824.58,822.25,0.21143255]
[1766109835969,1.19285646,824.57,822.25,0.21143255]
[1766109836269,1.19285646,824.56,822.25,0.21143255]
[1766109836568,1.19285646,824.55,822.25,0.21143255]
[1766109836765,1.19285646,824.54,822.25,0.21143255]
[1766109836969,1.19285646,824.53,822.25,0.21143255]
[1766109837169,1.19285646,824.52,822.25,0.21143255]
[1766109837368,1.19285646,824.51,822.25,0.21143255]
[1766109837569,1.19285646,824.5,822.25,0.21143255]
[1766109837871,1.1931738,824.49,822.25,0.21143255]
[1766109838071,1.1931738,824.48,822.25,0.21143255]
[1766109838271,1.1931738,824.47,822.25,0.21143255]
[1766109838571,1.1931738,824.46,822.25,0.21143255]
[1766109838766,1.1931738,824.45,822.25,0.21143255]
[1766109838971,1.1931738,824.44,822.25,0.21143255]
[1766109839171,1.1931738,824.43,822.25,0.21143255]
[1766109839367,1.1931738,824.42,822.25,0.21143255]
[1766109839572,1.1931738,824.41,822.25,0.21143255]
[1766109839768,1.19323833,824.4,822.25,0.21143255]
[1766109840068,1.19323833,824.39,822.25,0.21143255]
[1766109840268,1.19323833,824.38,822.25,0.21143255]
[1766109840473,1.19323833,824.37,822.25,0.21143255]
[1766109840772,1.19323833,824.36,822.25,0.21143255]
[1766109840972,1.19323833,824.35,822.25,0.21143255]
[1766109841172,1.19323833,824.34,822.25,0.21143255]
[1766109841373,1.19323833,824.33,822.25,0.21143255]
[1766109841570,1.19323833,824.32,822.25,0.21143255]
[1766109841871,1.19323833,824.31,822.25,0.21143255]
[1766109842069,1.19323833,824.3,822.25,0.21143255]
[1766109842270,1.19323833,824.29,822.25,0.21143255]
[1766109842469,1.19323833,824.28,822.25,0.21143255]
[1766109842669,1.19323833,824.27,821.43,0.00944294]
[1766109842873,9.945,824.49,820.61,0.19272114]
[1766109842874,1.19323833,824.26,822.08,0.21155208]
[1766109843074,1.19323833,824.25,822.08,0.21155208]
[1766109843373,1.19323833,824.24,822.08,0.21155208]
[1766109843574,9.945,824.49,822.08,0.21155208]
[1766109843775,1.1937412,824.48,822.08,0.21155208]
[1766109845874,1.19347168,824.47,822.08,0.21155208]
[1766109846078,9.945,824.49,822.08,0.21155208]
[1766109846277,1.19324289,824.48,822.08,0.21155208]
[1766109859690,1.19792424,824.47,822.08,0.21155208]
[1766109859989,1.19792424,824.46,822.08,0.21155208]
[1766109860189,1.19792424,824.45,822.08,0.21155208]
[1766109860389,1.19792424,824.44,822.08,0.21155208]
[1766109860589,1.19792424,824.43,822.08,0.21155208]
[1766109860885,9.945,824.49,822.08,0.21155208]
[1766109860886,1.19792424,824.42,822.08,0.21155208]
[1766109861089,1.19792424,824.41,822.08,0.21155208]
[1766109861288,1.19792424,824.4,822.08,0.21155208]
[1766109861490,1.19792424,824.39,822.08,0.21155208]
[1766109861791,1.19792424,824.38,822.08,0.21155208]
[1766109861991,1.19792424,824.37,822.08,0.21155208]
[1766109862192,1.19792424,824.36,822.08,0.21155208]
[1766109862491,1.19792424,824.35,822.08,0.21155208]
[1766109862691,1.19792424,824.34,822.08,0.21155208]
[1766109862891,1.19792424,824.33,822.08,0.21155208]
[1766109863092,1.19792424,824.32,822.08,0.21155208]
[1766109863292,1.19792424,824.31,822.08,0.21155208]
[1766109863595,1.19792424,824.3,822.08,0.21155208]
[1766109863792,1.19792424,824.29,822.08,0.21155208]
[1766109863989,1.19792424,824.28,822.08,0.21155208]
[1766109864289,1.19792424,824.27,822.08,0.21155208]
[1766109864489,1.20193162,824.26,822.08,0.21155208]
[1766109864693,1.20193162,824.25,822.08,0.21155208]
[1766109864992,1.20193162,824.24,822.08,0.21155208]
[1766109865287,1.20193162,824.23,822.08,0.21155208]
[1766109865490,1.20193162,824.22,822.08,0.21155208]
[1766109865692,1.20193162,824.21,822.08,0.21155208]
[1766109865890,1.20193162,824.2,822.08,0.21155208]
[1766109866092,68.32951,825.15,822.08,0.21155208]
[1766109866093,1.20193162,824.19,822.08,0.21155208]
[1766109866292,1.20193162,824.18,822.08,0.21155208]
[1766109866490,0.21157266,823.67,821.26,0.01280362]
[1766109866692,0.21157266,823.67,821.92,0.21157781]
[1766109866996,0.21157266,823.67,821.1,0.01415785]
[1766109867197,0.21157266,823.67,820.28,0.00991916]
[1766109867397,0.21157266,823.67,819.94,9.13935554]
[1766109868197,9.955,823.66,820.87,0.2116074]
[1766109868394,1.20193162,823.65,820.87,0.2116074]
[1766109877211,22.99372992,823.66,820.87,0.2116074]
[1766109877410,1.2161182,823.65,820.87,0.2116074]
[1766109879207,22.99372992,823.66,820.87,0.2116074]
[1766109880009,1.21623095,823.65,820.87,0.2116074]
[1766109882212,22.99372992,823.66,820.87,0.2116074]
[1766109882408,1.21622309,823.65,820.87,0.2116074]
[1766109888314,1.21629029,823.64,820.87,0.2116074]
[1766109888512,1.21629029,823.63,820.87,0.2116074]
[1766109888710,1.21629029,823.62,820.87,0.2116074]
[1766109888913,1.21629029,823.61,820.87,0.2116074]
[1766109889112,1.21629029,823.6,820.87,0.2116074]
[1766109889312,1.21629029,823.59,820.87,0.2116074]
[1766109889512,1.21629029,823.58,820.87,0.2116074]
[1766109889712,1.21629029,823.57,820.87,0.2116074]
[1766109889913,1.21629029,823.56,820.87,0.2116074]
[1766109890113,1.21628983,823.55,820.87,0.2116074]
[1766109890313,1.21628983,823.54,820.87,0.2116074]
[1766109890516,1.21628983,823.53,820.87,0.2116074]
[1766109890817,1.21628983,823.52,820.87,0.2116074]
[1766109891017,1.21628983,823.51,820.87,0.2116074]
[1766109891211,1.21613527,823.5,820.87,0.2116074]
[1766109891415,1.21613527,823.49,820.87,0.2116074]
[1766109891716,1.21613527,823.48,820.87,0.2116074]
[1766109891917,1.21613527,823.47,820.87,0.2116074]
[1766109892117,1.21613527,823.46,820.87,0.2116074]
[1766109892317,1.21613527,823.45,820.87,0.2116074]
[1766109892514,1.21613527,823.44,820.87,0.2116074]
[1766109892715,1.21613527,823.43,820.87,0.2116074]
[1766109892914,1.21613527,823.42,820.87,0.2116074]
[1766109893115,1.21613527,823.41,820.87,0.2116074]
[1766109893418,1.21613527,823.4,820.87,0.2116074]
[1766109893615,22.99372992,823.66,820.87,0.2116074]
[1766109893819,1.21594121,823.65,820.87,0.2116074]
[1766109895216,1.21588769,823.64,820.87,0.2116074]
[1766109895421,1.21588769,823.63,820.87,0.2116074]
[1766109895716,22.99372992,823.66,820.87,0.2116074]
[1766109895717,1.21588769,823.62,820.87,0.2116074]
[1766109895914,1.21588769,823.61,820.87,0.2116074]
[1766109896115,1.21588769,823.6,820.87,0.2116074]
[1766109896317,1.21588769,823.59,820.87,0.2116074]
[1766109896515,1.21588769,823.58,820.87,0.2116074]
[1766109896716,1.21588769,823.57,820.87,0.2116074]
[1766109896917,1.21588769,823.56,820.87,0.2116074]
[1766109897118,1.21588769,823.55,820.87,0.2116074]
[1766109897319,1.21588769,823.54,820.87,0.2116074]
[1766109897515,1.21588769,823.53,820.87,0.2116074]
[1766109897719,1.21588769,823.52,820.87,0.2116074]
[1766109897917,1.21588769,823.51,820.87,0.2116074]
[1766109898117,1.21588769,823.5,820.87,0.2116074]
[1766109898318,22.99372992,823.66,820.87,0.2116074]
[1766109898517,1.21574407,823.65,820.87,0.2116074]
[1766109903126,9.955,823.64,820.87,0.2116074]
[1766109903426,1.21574407,823.63,820.87,0.2116074]
[1766109904124,1.21571273,823.62,820.87,0.2116074]
[1766109904326,1.21571273,823.61,820.87,0.2116074]
[1766109904626,1.21571273,823.6,820.87,0.2116074]
[1766109904827,1.21571273,823.59,820.87,0.2116074]
[1766109905024,1.21571273,823.58,820.87,0.2116074]
[1766109905324,9.955,823.64,820.87,0.2116074]
[1766109905325,1.21571273,823.57,820.87,0.2116074]
[1766109905522,1.21571273,823.56,820.87,0.2116074]
[1766109905722,1.21571273,823.55,820.87,0.2116074]
[1766109905926,1.21571273,823.54,820.87,0.2116074]
[1766109906125,1.21571273,823.53,820.87,0.2116074]
[1766109906324,9.955,823.64,820.87,0.2116074]
[1766109906522,1.2157048,823.63,820.87,0.2116074]
[1766109909125,9.955,823.64,820.87,0.2116074]
[1766109926140,0.21147559,823.65,820.87,0.2116074]
[1766109929242,9.955,823.64,820.87,0.2116074]
[1766109936956,1.21584779,823.63,820.87,0.2116074]
[1766109938354,9.955,823.64,820.87,0.2116074]
[1766109938557,1.21586023,823.63,820.87,0.2116074]